fUST/lending_fUST_20240416
["ID","MTS","AMOUNT","RATE_DAILY","PERIOD"]
[322700532,1713225032768,-420.0,0.00023693,2]
[322700534,1713225032778,-420.0,0.00023979,2]
[322700535,1713225032789,-311.16933144,0.00024701,2]
[322700536,1713225032800,-354.53382506,0.00024999,2]
[322700537,1713225032810,-156.98200501,0.00025,2]
[322700538,1713225032820,-183.53728373,0.00025182,2]
[322700539,1713225032830,-166.780428,0.00025449,2]
[322700540,1713225032841,-1160.93986465,0.00025624,2]
[322700541,1713225032852,-587.0,0.00025752,2]
[322700542,1713225032863,-587.0,0.00026377,2]
[322700543,1713225032874,-162.587924,0.00027397,2]
[322700544,1713225032885,-166.666666,0.00027397,2]
[322700545,1713225032896,-823.0,0.00027989,2]
[322700546,1713225032908,-166.666666,0.00028038,2]
[322700547,1713225032918,-166.666666,0.00028679,2]
[322700548,1713225032928,-823.0,0.00029014,2]
[322700549,1713225032938,-166.666666,0.00029321,2]
[322700550,1713225032948,-166.666666,0.00029962,2]
[322700551,1713225032959,-1242.51023388,0.0003,4]
[322700552,1713225032969,-187.0,0.0003,2]
[322700553,1713225032979,-431.0,0.0003,2]
[322700554,1713225032990,-2000.0,0.00030036,2]
[322700555,1713225033000,-168.593391,0.00030067,2]
[322700556,1713225033011,-4315.0963278,0.00030134,4]
[322700557,1713225033023,-2199.86963913,0.00030134,4]
[322700558,1713225033034,-640.72014459,0.00030134,2]
[322700559,1713225033044,-880.8735514,0.00030135,4]
[322700560,1713225033054,-500.0,0.00030136,2]
[322700561,1713225033064,-500.0,0.00030136,2]
[322700562,1713225033076,-508.84,0.00030136,2]
[322700563,1713225033087,-500.0,0.00030136,2]
[322700564,1713225033097,-500.0,0.00030136,2]
[322700565,1713225033108,-500.0,0.00030136,2]
[322700566,1713225033118,-500.0,0.00030136,2]
[322700567,1713225033128,-751.67,0.00030136,2]
[322700568,1713225033138,-500.0,0.00030136,2]
[322700569,1713225033148,-500.0,0.00030136,2]
[322700570,1713225033158,-500.0,0.00030136,2]
[322700571,1713225033168,-500.0,0.00030136,2]
[322700572,1713225033178,-500.0,0.00030136,2]
[322700573,1713225033189,-500.0,0.00030136,2]
[322700574,1713225033199,-690.32,0.00030136,2]
[322700575,1713225033208,-500.0,0.00030136,2]
[322700576,1713225033219,-672.45,0.00030136,2]
[322700577,1713225033229,-500.0,0.00030136,2]
[322700578,1713225033239,-500.0,0.00030136,2]
[322700579,1713225033249,-500.0,0.00030136,2]
[322700580,1713225033260,-500.0,0.00030136,2]
[322700581,1713225033270,-500.0,0.00030136,2]
[322700582,1713225033280,-500.0,0.00030136,2]
[322700583,1713225033290,-506.71,0.00030136,2]
[322700584,1713225033301,-500.0,0.00030136,2]
[322700585,1713225033311,-500.0,0.00030136,2]
[322700586,1713225033321,-880.2,0.00030136,2]
[322700587,1713225033332,-500.0,0.00030136,2]
[322700588,1713225033342,-500.0,0.00030136,2]
[322700589,1713225033352,-500.0,0.00030136,2]
[322700590,1713225033362,-500.0,0.00030136,2]
[322700591,1713225033373,-500.0,0.00030136,2]
[322700592,1713225033385,-500.0,0.00030136,2]
[322700593,1713225033395,-500.0,0.00030136,2]
[322700594,1713225033406,-500.0,0.00030136,2]
[322700595,1713225033420,-500.0,0.00030136,2]
[322700596,1713225033429,-500.0,0.00030136,2]
[322700597,1713225033440,-500.0,0.00030136,2]
[322700598,1713225033450,-500.0,0.00030136,2]
[322700599,1713225033460,-500.0,0.00030136,2]
[322700600,1713225033472,-500.0,0.00030136,2]
[322700601,1713225033481,-500.0,0.00030136,2]
[322700602,1713225033491,-500.0,0.00030136,2]
[322700603,1713225033502,-500.0,0.00030136,2]
[322700604,1713225033513,-500.0,0.00030136,2]
[322700605,1713225033523,-500.0,0.00030136,2]
[322700606,1713225033533,-500.0,0.00030136,2]
[322700607,1713225033543,-500.0,0.00030136,2]
[322700608,1713225033554,-500.0,0.00030136,2]
[322700609,1713225033564,-600.83,0.00030136,2]
[322700610,1713225033574,-500.0,0.00030136,2]
[322700611,1713225033584,-500.0,0.00030136,2]
[322700612,1713225033763,-500.0,0.00030136,2]
[322700613,1713225033774,-500.0,0.00030136,2]
[322700614,1713225033784,-500.0,0.00030136,2]
[322700615,1713225033793,-500.0,0.00030136,2]
[322700616,1713225033803,-500.0,0.00030136,2]
[322700617,1713225033812,-500.0,0.00030136,2]
[322700618,1713225033821,-500.0,0.00030136,2]
[322700619,1713225033830,-500.0,0.00030136,2]
[322700620,1713225033839,-500.0,0.00030136,2]
[322700621,1713225033848,-500.0,0.00030136,2]
[322700622,1713225033856,-429.00751268,0.00030136,2]
[322700623,1713225033865,-559.16,0.00030136,2]
[322700624,1713225033874,-500.0,0.00030136,2]
[322700625,1713225033883,-6672.2,0.00030136,2]
[322700626,1713225033891,-500.0,0.00030136,2]
[322700627,1713225033900,-500.0,0.00030136,2]
[322700628,1713225033909,-500.0,0.00030136,2]
[322700629,1713225033919,-918.83,0.00030136,2]
[322700630,1713225033928,-500.0,0.00030136,2]
[322700631,1713225033937,-933.62,0.00030136,2]
[322700632,1713225033946,-500.0,0.00030136,2]
[322700633,1713225033955,-154.79876161,0.00030136,2]
[322700634,1713225033964,-3655.27,0.00030136,2]
[322700635,1713225033972,-3655.27,0.00030136,2]
[322700636,1713225033981,-3655.27,0.00030136,2]
[322700637,1713225033990,-4439.72,0.00030136,2]
[322700638,1713225033999,-500.0,0.00030136,7]
[322700639,1713225034010,-500.0,0.00030136,7]
[322700640,1713225034019,-1740.54,0.00030136,2]
[322700641,1713225034027,-500.0,0.00030136,2]
[322700642,1713225034036,-500.0,0.00030136,2]
[322700643,1713225034044,-500.0,0.00030136,2]
[322700644,1713225034053,-591.97,0.00030136,2]
[322700645,1713225034062,-500.0,0.00030136,2]
[322700646,1713225034070,-500.0,0.00030136,2]
[322700647,1713225034079,-500.0,0.00030136,2]
[322700648,1713225034088,-500.0,0.00030136,2]
[322700649,1713225034097,-500.0,0.00030136,2]
[322700650,1713225034107,-500.0,0.00030136,2]
[322700651,1713225034116,-949.11,0.00030136,2]
[322700652,1713225034124,-969.08,0.00030136,2]
[322700653,1713225034134,-500.0,0.00030136,2]
[322700654,1713225034142,-500.0,0.00030136,2]
[322700655,1713225034152,-500.0,0.00030136,2]
[322700656,1713225034161,-500.0,0.00030136,2]
[322700657,1713225034170,-500.0,0.00030136,2]
[322700658,1713225034179,-500.0,0.00030136,2]
[322700659,1713225034189,-704.01,0.00030136,2]
[322700660,1713225034198,-500.0,0.00030136,2]
[322700661,1713225034206,-567.95,0.00030136,2]
[322700662,1713225034215,-652.9,0.00030136,2]
[322700663,1713225034224,-500.0,0.00030136,2]
[322700664,1713225034233,-333.70086374,0.00030136,2]
[322700676,1713225038826,-166.666666,0.00028909,2]
[322700677,1713225038838,-166.666666,0.00029697,2]
[322700678,1713225038848,-166.29913626,0.00030136,2]
[322700679,1713225038858,-500.0,0.00030136,2]
[322700680,1713225038867,-720.36,0.00030136,2]
[322700681,1713225038876,-500.0,0.00030136,2]
[322700682,1713225038885,-1707.59,0.00030136,2]
[322700683,1713225038895,-154.79876161,0.00030136,2]
[322700684,1713225038903,-1794.99,0.00030136,2]
[322700685,1713225038914,-500.0,0.00030136,2]
[322700686,1713225038923,-522.8,0.00030136,2]
[322700687,1713225038932,-892.71,0.00030136,2]
[322700688,1713225038941,-542.91,0.00030136,2]
[322700689,1713225038950,-500.0,0.00030136,2]
[322700690,1713225038959,-500.0,0.00030136,2]
[322700691,1713225038968,-170.6194949,0.00030137,2]
[322700692,1713225038977,-1160.93986465,0.00030406,5]
[322700693,1713225038986,-3655.27,0.00030409,7]
[322700694,1713225038995,-500.0,0.00030409,7]
[322700695,1713225039004,-500.0,0.00030409,7]
[322700696,1713225039013,-500.0,0.0003041,7]
[322700697,1713225039022,-500.0,0.0003041,7]
[322700698,1713225039031,-508.84,0.0003041,7]
[322700699,1713225039039,-500.0,0.0003041,7]
[322700700,1713225039048,-500.0,0.0003041,7]
[322700701,1713225039057,-500.0,0.0003041,7]
[322700702,1713225039065,-500.0,0.0003041,7]
[322700703,1713225039074,-751.67,0.0003041,7]
[322700704,1713225039082,-500.0,0.0003041,7]
[322700705,1713225039091,-500.0,0.0003041,7]
[322700706,1713225039100,-500.0,0.0003041,7]
[322700707,1713225039109,-500.0,0.0003041,7]
[322700708,1713225039117,-500.0,0.0003041,7]
[322700709,1713225039126,-690.32,0.0003041,7]
[322700710,1713225039135,-500.0,0.0003041,7]
[322700711,1713225039144,-672.45,0.0003041,7]
[322700712,1713225039153,-300.67461496,0.0003041,7]
[322700713,1713225039162,-500.0,0.0003041,7]
[322700714,1713225039171,-500.0,0.0003041,7]
[322700715,1713225039180,-500.0,0.0003041,7]
[322700716,1713225039189,-500.0,0.0003041,7]
[322700717,1713225039198,-500.0,0.0003041,7]
[322700718,1713225039206,-506.71,0.0003041,7]
[322700719,1713225039215,-511.65020668,0.0003041,7]
[322700720,1713225039224,-500.0,0.0003041,7]
[322700721,1713225039233,-880.2,0.0003041,7]
[322700722,1713225039241,-500.0,0.0003041,7]
[322700723,1713225039250,-513.71192368,0.0003041,7]
[322700724,1713225039259,-211.44704799,0.0003041,7]
[322700725,1713225039268,-500.0,0.0003041,7]
[322700726,1713225039277,-500.0,0.0003041,7]
[322700727,1713225039285,-501.16437366,0.0003041,7]
[322700728,1713225039294,-500.0,0.0003041,7]
[322700729,1713225039303,-500.0,0.0003041,7]
[322700730,1713225039312,-500.0,0.0003041,7]
[322700731,1713225039321,-500.0,0.0003041,7]
[322700732,1713225039330,-500.0,0.0003041,7]
[322700733,1713225039339,-500.0,0.0003041,7]
[322700734,1713225039347,-500.0,0.0003041,7]
[322700735,1713225039357,-500.0,0.0003041,7]
[322700736,1713225039366,-500.0,0.0003041,7]
[322700737,1713225039374,-500.0,0.0003041,7]
[322700738,1713225039383,-500.0,0.0003041,7]
[322700739,1713225039393,-500.0,0.0003041,7]
[322700740,1713225039401,-500.0,0.0003041,7]
[322700741,1713225039414,-500.0,0.0003041,7]
[322700742,1713225039423,-500.0,0.0003041,7]
[322700743,1713225039433,-500.0,0.0003041,7]
[322700744,1713225039442,-600.83,0.0003041,7]
[322700745,1713225039451,-500.0,0.0003041,7]
[322700746,1713225039459,-500.0,0.0003041,7]
[322700747,1713225039468,-500.0,0.0003041,7]
[322700748,1713225039477,-500.0,0.0003041,7]
[322700749,1713225039486,-500.0,0.0003041,7]
[322700750,1713225039494,-500.0,0.0003041,7]
[322700751,1713225039503,-500.65753662,0.0003041,7]
[322700752,1713225039512,-500.0,0.0003041,7]
[322700753,1713225039521,-500.0,0.0003041,7]
[322700754,1713225039530,-559.16,0.0003041,7]
[322700755,1713225039538,-500.0,0.0003041,7]
[322700756,1713225039547,-6672.2,0.0003041,7]
[322700757,1713225039556,-500.0,0.0003041,7]
[322700758,1713225039565,-500.0,0.0003041,7]
[322700759,1713225039574,-500.0,0.0003041,7]
[322700760,1713225039583,-918.83,0.0003041,7]
[322700761,1713225039592,-500.0,0.0003041,7]
[322700762,1713225039601,-933.62,0.0003041,7]
[322700763,1713225039610,-263.95825479,0.0003041,7]
[322700764,1713225039619,-4439.72,0.0003041,7]
[322700765,1713225039628,-1740.54,0.0003041,7]
[322700766,1713225039637,-500.0,0.0003041,7]
[322700767,1713225039646,-500.0,0.0003041,7]
[322700768,1713225039657,-500.0,0.0003041,7]
[322700769,1713225039666,-591.97,0.0003041,7]
[322700770,1713225039675,-500.0,0.0003041,7]
[322700771,1713225039684,-500.0,0.0003041,7]
[322700772,1713225039693,-500.0,0.0003041,7]
[322700773,1713225039702,-500.0,0.0003041,7]
[322700774,1713225039715,-500.0,0.0003041,7]
[322700775,1713225039724,-500.0,0.0003041,7]
[322700776,1713225039733,-949.11,0.0003041,7]
[322700777,1713225039742,-969.08,0.0003041,7]
[322700778,1713225039752,-500.0,0.0003041,7]
[322700779,1713225039762,-500.0,0.0003041,7]
[322700780,1713225039771,-500.0,0.0003041,7]
[322700781,1713225039780,-500.0,0.0003041,7]
[322700782,1713225039791,-500.0,0.0003041,7]
[322700783,1713225039800,-704.01,0.0003041,7]
[322700784,1713225039810,-500.0,0.0003041,7]
[322700785,1713225039820,-567.95,0.0003041,7]
[322700786,1713225039831,-652.9,0.0003041,7]
[322700787,1713225039840,-500.0,0.0003041,7]
[322700788,1713225039850,-500.0,0.0003041,7]
[322700789,1713225039859,-500.0,0.0003041,7]
[322700790,1713225039867,-720.36,0.0003041,7]
[322700791,1713225039877,-500.0,0.0003041,7]
[322700792,1713225039886,-1707.59,0.0003041,7]
[322700793,1713225039895,-1794.99,0.0003041,7]
[322700794,1713225039906,-500.0,0.0003041,7]
[322700795,1713225039915,-522.8,0.0003041,7]
[322700796,1713225039924,-892.71,0.0003041,7]
[322700797,1713225039933,-155.36,0.0003041,7]
[322700798,1713225039943,-500.0,0.0003041,7]
[322700799,1713225039954,-187.0,0.00030411,2]
[322700800,1713225039963,-1152.0,0.00030421,2]
[322700801,1713225039972,-166.666666,0.00030485,2]
[322700802,1713225039981,-3655.27,0.00030682,7]
[322700803,1713225039991,-3655.27,0.00030683,7]
[322700804,1713225040000,-500.0,0.00030683,7]
[322700805,1713225040009,-500.0,0.00030684,7]
[322700806,1713225040018,-508.84,0.00030684,7]
[322700807,1713225040027,-500.0,0.00030684,7]
[322700808,1713225040036,-500.0,0.00030684,7]
[322700809,1713225040045,-500.0,0.00030684,7]
[322700810,1713225040054,-751.67,0.00030684,7]
[322700811,1713225040063,-500.0,0.00030684,7]
[322700812,1713225040073,-500.0,0.00030684,7]
[322700813,1713225040082,-500.0,0.00030684,7]
[322700814,1713225040091,-500.0,0.00030684,7]
[322700816,1713225040100,-416.73883503,0.00030684,7]
[322700817,1713225040109,-690.32,0.00030684,7]
[322700818,1713225040118,-672.45,0.00030684,7]
[322700819,1713225040127,-500.0,0.00030684,7]
[322700820,1713225040136,-500.0,0.00030684,7]
[322700821,1713225040145,-506.71,0.00030684,7]
[322700822,1713225040155,-500.0,0.00030684,7]
[322700823,1713225040164,-880.2,0.00030684,7]
[322700824,1713225040173,-500.0,0.00030684,7]
[322700825,1713225040182,-500.0,0.00030684,7]
[322700826,1713225040191,-500.0,0.00030684,7]
[322700827,1713225040200,-500.0,0.00030684,7]
[322700828,1713225040209,-500.0,0.00030684,7]
[322700829,1713225040218,-500.0,0.00030684,7]
[322700830,1713225040227,-500.0,0.00030684,7]
[322700831,1713225040236,-500.0,0.00030684,7]
[322700832,1713225040245,-500.0,0.00030684,7]
[322700833,1713225040254,-500.0,0.00030684,7]
[322700834,1713225040263,-500.0,0.00030684,7]
[322700835,1713225040272,-514.35032458,0.00030684,7]
[322700836,1713225040281,-600.83,0.00030684,7]
[322700837,1713225040290,-500.0,0.00030684,7]
[322700838,1713225040298,-500.0,0.00030684,7]
[322700839,1713225040307,-500.0,0.00030684,7]
[322700840,1713225040316,-500.0,0.00030684,7]
[322700841,1713225040325,-500.0,0.00030684,7]
[322700842,1713225040334,-559.16,0.00030684,7]
[322700843,1713225040343,-500.0,0.00030684,7]
[322700844,1713225040352,-6672.2,0.00030684,7]
[322700845,1713225040362,-514.13,0.00030684,7]
[322700846,1713225040372,-500.0,0.00030684,7]
[322700847,1713225040381,-500.0,0.00030684,7]
[322700849,1713225040391,-918.83,0.00030684,7]
[322700851,1713225040400,-500.0,0.00030684,7]
[322700853,1713225040411,-933.62,0.00030684,7]
[322700855,1713225040420,-4439.72,0.00030684,7]
[322700856,1713225040429,-1740.54,0.00030684,7]
[322700858,1713225040437,-500.0,0.00030684,7]
[322700860,1713225040446,-500.0,0.00030684,7]
[322700861,1713225040455,-500.0,0.00030684,7]
[322700862,1713225040464,-591.97,0.00030684,7]
[322700864,1713225040473,-500.0,0.00030684,7]
[322700866,1713225040482,-500.0,0.00030684,7]
[322700868,1713225040491,-500.0,0.00030684,7]
[322700870,1713225040500,-500.0,0.00030684,7]
[322700872,1713225040509,-500.0,0.00030684,7]
[322700874,1713225040518,-500.0,0.00030684,7]
[322700876,1713225040527,-949.11,0.00030684,7]
[322700878,1713225040537,-969.08,0.00030684,7]
[322700880,1713225040546,-500.0,0.00030684,7]
[322700882,1713225040555,-500.0,0.00030684,7]
[322700884,1713225040565,-500.0,0.00030684,7]
[322700886,1713225040574,-500.0,0.00030684,7]
[322700888,1713225040583,-704.01,0.00030684,7]
[322700890,1713225040592,-500.0,0.00030684,7]
[322700892,1713225040602,-567.95,0.00030684,7]
[322700894,1713225040611,-652.9,0.00030684,7]
[322700896,1713225040620,-500.0,0.00030684,7]
[322700898,1713225040629,-500.0,0.00030684,7]
[322700900,1713225040639,-500.0,0.00030684,7]
[322700902,1713225040648,-720.36,0.00030684,7]
[322700904,1713225040658,-500.0,0.00030684,7]
[322700906,1713225040667,-1707.59,0.00030684,7]
[322700908,1713225040676,-1794.99,0.00030684,7]
[322700910,1713225040685,-500.0,0.00030684,7]
[322700912,1713225040694,-522.8,0.00030684,7]
[322700914,1713225040703,-892.71,0.00030684,7]
[322700916,1713225040716,-500.0,0.00030684,7]
[322700918,1713225040725,-9812.8231806,0.0003069,2]
[322700920,1713225040734,-566.05715004,0.00030957,2]
[322700921,1713225040743,-170.98249835,0.00030957,2]
[322700924,1713225040753,-3655.27,0.00030957,7]
[322700926,1713225040763,-500.0,0.00030957,7]
[322700929,1713225040773,-500.0,0.00030958,7]
[322700931,1713225040782,-508.84,0.00030958,7]
[322700933,1713225040794,-500.0,0.00030958,7]
[322700935,1713225040802,-500.0,0.00030958,7]
[322700937,1713225040814,-500.0,0.00030958,7]
[322700950,1713225040931,-751.67,0.00030958,7]
[322700952,1713225040944,-500.0,0.00030958,7]
[322700954,1713225040953,-500.0,0.00030958,7]
[322700957,1713225040963,-500.0,0.00030958,7]
[322700959,1713225040973,-500.0,0.00030958,7]
[322700960,1713225040982,-690.32,0.00030958,7]
[322700963,1713225040992,-672.45,0.00030958,7]
[322700964,1713225041001,-500.0,0.00030958,7]
[322700966,1713225041010,-500.0,0.00030958,7]
[322700968,1713225041019,-506.71,0.00030958,7]
[322700970,1713225041028,-500.0,0.00030958,7]
[322700973,1713225041037,-880.2,0.00030958,7]
[322700975,1713225041047,-500.0,0.00030958,7]
[322700977,1713225041056,-406.90942868,0.00030958,7]
[322700979,1713225041065,-500.0,0.00030958,7]
[322700981,1713225041075,-500.0,0.00030958,7]
[322700982,1713225041084,-500.0,0.00030958,7]
[322700985,1713225041093,-500.0,0.00030958,7]
[322700987,1713225041103,-500.0,0.00030958,7]
[322700989,1713225041112,-500.0,0.00030958,7]
[322700991,1713225041122,-500.0,0.00030958,7]
[322700993,1713225041131,-500.0,0.00030958,7]
[322700994,1713225041140,-600.83,0.00030958,7]
[322700997,1713225041150,-500.0,0.00030958,7]
[322700999,1713225041161,-500.0,0.00030958,7]
[322701001,1713225041170,-500.0,0.00030958,7]
[322701003,1713225041179,-500.0,0.00030958,7]
[322701005,1713225041189,-242.21710893,0.00030958,7]
[322701007,1713225041198,-559.16,0.00030958,7]
[322701009,1713225041208,-500.0,0.00030958,7]
[322701011,1713225041217,-6672.2,0.00030958,7]
[322701013,1713225041226,-500.0,0.00030958,7]
[322701015,1713225041236,-918.83,0.00030958,7]
[322701017,1713225041245,-500.0,0.00030958,7]
[322701019,1713225041255,-933.62,0.00030958,7]
[322701021,1713225041264,-4439.72,0.00030958,7]
[322701023,1713225041273,-1740.54,0.00030958,7]
[322701025,1713225041283,-500.0,0.00030958,7]
[322701027,1713225041292,-500.0,0.00030958,7]
[322701029,1713225041302,-500.0,0.00030958,7]
[322701031,1713225041311,-591.97,0.00030958,7]
[322701033,1713225041321,-500.0,0.00030958,7]
[322701035,1713225041330,-500.0,0.00030958,7]
[322701037,1713225041339,-500.0,0.00030958,7]
[322701039,1713225041348,-500.0,0.00030958,7]
[322701041,1713225041358,-500.0,0.00030958,7]
[322701043,1713225041367,-949.11,0.00030958,7]
[322701045,1713225041377,-969.08,0.00030958,7]
[322701047,1713225041386,-500.0,0.00030958,7]
[322701049,1713225041395,-500.0,0.00030958,7]
[322701051,1713225041405,-704.01,0.00030958,7]
[322701053,1713225041416,-567.95,0.00030958,7]
[322701055,1713225041425,-652.9,0.00030958,7]
[322701057,1713225041435,-500.0,0.00030958,7]
[322701059,1713225041444,-500.0,0.00030958,7]
[322701061,1713225041453,-500.0,0.00030958,7]
[322701064,1713225041462,-720.36,0.00030958,7]
[322701066,1713225041471,-184.19095975,0.00030958,7]
[322701068,1713225041481,-1707.59,0.00030958,7]
[322701070,1713225041489,-1794.99,0.00030958,7]
[322701072,1713225041498,-573.41334073,0.00030958,7]
[322701074,1713225041508,-522.8,0.00030958,7]
[322701076,1713225041518,-892.71,0.00030958,7]
[322701078,1713225041526,-500.0,0.00030958,7]
[322701079,1713225041536,-3655.27,0.00030999,7]
[322701080,1713225041545,-10625.72892433,0.00031,5]
[322701081,1713225041555,-150.0,0.00031,7]
[322701082,1713225041564,-631.04156357,0.00031007,2]
[322701083,1713225041573,-500.0,0.0003123,7]
[322701084,1713225041583,-13769.75147912,0.00031231,4]
[322701085,1713225041592,-3655.27,0.00031231,7]
[322701086,1713225041601,-500.0,0.00031231,7]
[322701087,1713225041610,-500.0,0.00031232,7]
[322701088,1713225041619,-508.84,0.00031232,7]
[322701089,1713225041628,-500.0,0.00031232,7]
[322701090,1713225041640,-503.59983779,0.00031232,7]
[322701091,1713225041649,-500.0,0.00031232,7]
[322701092,1713225041661,-751.67,0.00031232,7]
[322701093,1713225041671,-500.0,0.00031232,7]
[322701094,1713225041680,-500.0,0.00031232,7]
[322701095,1713225041689,-500.0,0.00031232,7]
[322701096,1713225041699,-500.0,0.00031232,7]
[322701097,1713225041710,-690.32,0.00031232,7]
[322701098,1713225041722,-672.45,0.00031232,7]
[322701099,1713225041731,-500.0,0.00031232,7]
[322701100,1713225041741,-500.0,0.00031232,7]
[322701101,1713225041751,-506.71,0.00031232,7]
[322701102,1713225041761,-500.0,0.00031232,7]
[322701103,1713225041771,-880.2,0.00031232,7]
[322701104,1713225041780,-302.62476927,0.00031232,7]
[322701105,1713225041789,-500.0,0.00031232,7]
[322701106,1713225041798,-500.0,0.00031232,7]
[322701107,1713225041808,-500.0,0.00031232,7]
[322701108,1713225041817,-500.0,0.00031232,7]
[322701109,1713225041826,-500.0,0.00031232,7]
[322701110,1713225041835,-500.0,0.00031232,7]
[322701111,1713225041845,-500.0,0.00031232,7]
[322701112,1713225041854,-500.0,0.00031232,7]
[322701113,1713225041865,-600.83,0.00031232,7]
[322701114,1713225041874,-500.0,0.00031232,7]
[322701115,1713225041883,-500.0,0.00031232,7]
[322701116,1713225041892,-500.0,0.00031232,7]
[322701117,1713225041901,-500.0,0.00031232,7]
[322701119,1713225041911,-559.16,0.00031232,7]
[322701121,1713225041920,-500.0,0.00031232,7]
[322701122,1713225041930,-6672.2,0.00031232,7]
[322701123,1713225041939,-500.0,0.00031232,7]
[322701124,1713225041948,-918.83,0.00031232,7]
[322701125,1713225041957,-500.0,0.00031232,7]
[322701126,1713225041967,-933.62,0.00031232,7]
[322701127,1713225041976,-4439.72,0.00031232,7]
[322701128,1713225041986,-1740.54,0.00031232,7]
[322701129,1713225041996,-565.2,0.00031232,7]
[322701130,1713225042005,-500.0,0.00031232,7]
[322701131,1713225042014,-500.0,0.00031232,7]
[322701132,1713225042023,-591.97,0.00031232,7]
[322701133,1713225042033,-500.0,0.00031232,7]
[322701134,1713225042043,-500.0,0.00031232,7]
[322701135,1713225042052,-500.0,0.00031232,7]
[322701136,1713225042062,-500.0,0.00031232,7]
[322701137,1713225042071,-500.0,0.00031232,7]
[322701138,1713225042080,-949.11,0.00031232,7]
[322701139,1713225042089,-969.08,0.00031232,7]
[322701140,1713225042099,-500.0,0.00031232,7]
[322701141,1713225042109,-500.0,0.00031232,7]
[322701143,1713225042118,-704.01,0.00031232,7]
[322701144,1713225042127,-567.95,0.00031232,7]
[322701145,1713225042136,-652.9,0.00031232,7]
[322701146,1713225042145,-325.92060134,0.00031232,7]
[322701147,1713225042154,-500.0,0.00031232,7]
[322701148,1713225042164,-500.0,0.00031232,7]
[322701149,1713225042173,-720.36,0.00031232,7]
[322701150,1713225042182,-1707.59,0.00031232,7]
[322701151,1713225042191,-1794.99,0.00031232,7]
[322701152,1713225042201,-522.8,0.00031232,7]
[322701153,1713225042210,-892.71,0.00031232,7]
[322701154,1713225042219,-500.0,0.00031232,7]
[322701155,1713225042229,-166.666666,0.00031274,2]
[322701156,1713225042238,-3000.0,0.000315,4]
[322701157,1713225042247,-3655.27,0.00031504,7]
[322701158,1713225042256,-3655.27,0.00031505,7]
[322701159,1713225042265,-3655.27,0.00031505,7]
[322701160,1713225042274,-3655.27,0.00031505,7]
[322701161,1713225042283,-500.0,0.00031505,7]
[322701162,1713225042292,-500.0,0.00031505,7]
[322701163,1713225042301,-500.0,0.00031505,7]
[322701164,1713225042310,-27691.07387037,0.00031506,5]
[322701165,1713225042319,-1014.5211511,0.00031506,4]
[322701166,1713225042329,-4846.42835322,0.00031506,5]
[322701167,1713225042338,-6782.00392295,0.00031506,4]
[322701168,1713225042347,-500.0,0.00031506,7]